Workbook

Sheet Sheet1
A1: 贵阳市工业和信息化局2024年公开招聘局属事业单位工作人员进入面试环节人员名单
A2: 序号 | B2: 姓名 | C2: 准考证号 | D2: 单位 | E2: 报考岗位及代码 | F2: 笔试成绩 | G2: 笔试成绩（百分制） | H2: 笔试成绩30% | I2: 专业测试成绩 | J2: 专业测试成绩40% | K2: 笔试、专业测试成绩 | L2: 笔试、专业测试排名 | M2: 是否进入下一轮
A3: 1 | B3: 余兴勤 | C3: 1152011401925 | D3: 贵阳市煤炭安全生产技术中心 | E3: 20101001101 | F3: 186.5 | G3: =F3/3 -> 62.17 | H3: =F3/3*0.3 -> 18.65 | I3: 86 | J3: =I3*0.4 -> 34.40 | K3: =J3+H3 -> 53.05 | L3: 1 | M3: 是
A4: 2 | B4: 李建欣 | C4: 1152011402519 | D4: 贵阳市煤炭安全生产技术中心 | E4: 20101001101 | F4: 171.5 | G4: =F4/3 -> 57.17 | H4: =F4/3*0.3 -> 17.15 | I4: 84 | J4: =I4*0.4 -> 33.60 | K4: =J4+H4 -> 50.75 | L4: 2 | M4: 是
A5: 3 | B5: 姚荣华 | C5: 1152011402104 | D5: 贵阳市煤炭安全生产技术中心 | E5: 20101001101 | F5: 140.5 | G5: =F5/3 -> 46.83 | H5: =F5/3*0.3 -> 14.05 | I5: 79 | J5: =I5*0.4 -> 31.60 | K5: =J5+H5 -> 45.65 | L5: 3 | M5: 是
A7: 1 | B7: 胡帅 | C7: 1152011401325 | D7: 贵阳市煤炭安全生产技术中心 | E7: 20101001102 | F7: 192 | G7: =F7/3 -> 64.00 | H7: =F7/3*0.3 -> 19.20 | I7: 70 | J7: =I7*0.4 -> 28.00 | K7: =J7+H7 -> 47.20 | L7: 1 | M7: 是
A8: 2 | B8: 魏承庚 | C8: 1152011402621 | D8: 贵阳市煤炭安全生产技术中心 | E8: 20101001102 | F8: 169.5 | G8: =F8/3 -> 56.50 | H8: =F8/3*0.3 -> 16.95 | I8: 65 | J8: =I8*0.4 -> 26.00 | K8: =J8+H8 -> 42.95 | L8: 2 | M8: 是
A9: 3 | B9: 昌文明 | C9: 1152011401619 | D9: 贵阳市煤炭安全生产技术中心 | E9: 20101001102 | F9: 163 | G9: =F9/3 -> 54.33 | H9: =F9/3*0.3 -> 16.30 | I9: 65 | J9: =I9*0.4 -> 26.00 | K9: =J9+H9 -> 42.30 | L9: 3 | M9: 是
A10: 4 | B10: 冉贤兵 | C10: 1152011402616 | D10: 贵阳市煤炭安全生产技术中心 | E10: 20101001102 | F10: 171.5 | G10: =F10/3 -> 57.17 | H10: =F10/3*0.3 -> 17.15 | I10: 62 | J10: =I10*0.4 -> 24.80 | K10: =J10+H10 -> 41.95 | L10: 4
A12: 1 | B12: 杨洪 | C12: 1152011400519 | D12: 贵阳市煤炭安全生产技术中心 | E12: 20101001103 | F12: 199.5 | G12: =F12/3 -> 66.50 | H12: =F12/3*0.3 -> 19.95 | I12: 88 | J12: =I12*0.4 -> 35.20 | K12: =J12+H12 -> 55.15 | L12: 1 | M12: 是
A13: 2 | B13: 刘宇桥 | C13: 1152011400321 | D13: 贵阳市煤炭安全生产技术中心 | E13: 20101001103 | F13: 170.5 | G13: =F13/3 -> 56.83 | H13: =F13/3*0.3 -> 17.05 | I13: 87 | J13: =I13*0.4 -> 34.80 | K13: =J13+H13 -> 51.85 | L13: 2 | M13: 是
A14: 3 | B14: 高雪飘 | C14: 1152011402910 | D14: 贵阳市煤炭安全生产技术中心 | E14: 20101001103 | F14: 171.5 | G14: =F14/3 -> 57.17 | H14: =F14/3*0.3 -> 17.15 | I14: 82 | J14: =I14*0.4 -> 32.80 | K14: =J14+H14 -> 49.95 | L14: 3 | M14: 是
A15: 4 | B15: 骆林池 | C15: 1152011400308 | D15: 贵阳市煤炭安全生产技术中心 | E15: 20101001103 | F15: 175.5 | G15: =F15/3 -> 58.50 | H15: =F15/3*0.3 -> 17.55 | I15: 67 | J15: =I15*0.4 -> 26.80 | K15: =J15+H15 -> 44.35 | L15: 4
A16: 5 | B16: 黄坤坤 | C16: 1152011401917 | D16: 贵阳市煤炭安全生产技术中心 | E16: 20101001103 | F16: 108.5 | G16: =F16/3 -> 36.17 | H16: =F16/3*0.3 -> 10.85 | I16: 77 | J16: =I16*0.4 -> 30.80 | K16: =J16+H16 -> 41.65 | L16: 5
